bitfinex-derivatives/quotes_ETHF0:USTF0_20251204
["timestamp","ask_amount","ask_price","bid_price","bid_amount"]
[1764875009051,3.2078,3130.5,3130.2,0.6508]
[1764875009248,1.318,3129.8,3129.0,0.6508]
[1764875009449,0.00479272,3129.7,3129.6,2.8013]
[1764875009649,0.659,3129.1,3128.4,0.6508]
[1764875009951,3.2078,3129.5,3129.4,1.0668]
[1764875010151,3.2078,3129.5,3129.0,0.6508]
[1764875010152,4.5258,3129.5,3129.0,0.6508]
[1764875010348,4.5258,3129.5,3129.4,0.00238622]
[1764875010349,3.86984619,3129.5,3129.4,0.00238622]
[1764875010848,3.2078,3130.3,3129.6,2.8013]
[1764875011354,2.43983731,3129.7,3129.4,0.00238622]
[1764875011547,3.8668,3129.5,3129.4,0.00238622]
[1764875011752,3.2078,3129.5,3129.4,0.00238622]
[1764875012052,3.21031902,3129.5,3129.4,0.00238622]
[1764875012249,4.52831902,3129.5,3129.4,0.00238622]
[1764875012653,45.32831902,3129.5,3129.4,0.00238622]
[1764875013350,0.659,3128.9,3127.7,3.2078]
[1764875013544,3.2078,3128.5,3127.7,3.2078]
[1764875013959,3.2078,3128.5,3127.3,3.36763]
[1764875014349,3.2078,3128.5,3127.8,0.65465271]
[1764875014744,2.43983731,3128.4,3127.8,0.65465271]
[1764875015056,3.2078,3128.9,3127.8,0.65465271]
[1764875015549,3.2078,3128.4,3127.8,0.65465271]
[1764875015750,3.2078,3128.4,3127.8,0.00385271]
[1764875016146,3.2078,3128.3,3127.8,0.00385271]
[1764875016355,3.2078,3128.3,3127.3,3.2078]
[1764875016356,1.0798,3127.4,3127.3,3.2078]
[1764875016558,2.1535,3127.4,3127.3,3.2078]
[1764875016852,2.1535,3127.2,3127.1,0.00902693]
[1764875017151,1.0798,3127.2,3127.1,0.00902693]
[1764875017354,1.08317052,3127.2,3127.1,0.01253695]
[1764875017556,2.15687052,3127.2,3127.1,0.01253695]
[1764875017760,0.00337052,3127.2,3127.1,2.12113695]
[1764875018249,2.15687052,3127.2,3127.1,0.01253695]
[1764875018457,0.00337052,3127.2,3127.1,1.09623695]
[1764875018652,0.00337052,3127.2,3127.1,2.12113695]
[1764875019449,0.00479272,3127.7,3127.6,2.26842]
[1764875019658,0.00479272,3127.7,3127.6,5.47622]
[1764875019850,3.2078,3128.1,3128.0,1.0837]
[1764875020351,3.2078,3129.0,3128.5,2.1086]
[1764875020550,3.21182747,3129.0,3128.9,1.0837]
[1764875020754,3.21182747,3129.0,3128.4,0.6852]
[1764875020956,3.21662019,3129.0,3128.4,0.68999272]
[1764875021660,3.21662019,3129.0,3128.9,2.1086]
[1764875021953,3.2078,3129.4,3128.9,2.1086]
[1764875022151,46.44763731,3129.4,3128.6,0.15976]
[1764875022352,44.0078,3129.4,3128.6,0.15976]
[1764875022752,44.0078,3129.4,3128.5,3.2078]
[1764875022753,3.2078,3129.0,3128.4,0.68999272]
[1764875022960,3.21562596,3129.0,3128.4,0.68999272]
[1764875023353,3.21562596,3129.0,3128.9,1.0837]
[1764875023659,3.21562596,3129.0,3128.9,2.1956]
[1764875023854,0.00782596,3129.0,3128.9,2.1956]
[1764875024047,0.00782596,3129.0,3128.9,1.0837]
[1764875024568,0.00782596,3129.0,3128.9,2.1956]
[1764875026165,0.00782596,3129.0,3128.9,2.35535]
[1764875026359,0.00782596,3129.0,3128.9,2.3024]
[1764875026656,0.00782596,3129.0,3128.6,3.2078]
[1764875026864,4.2435,3128.7,3128.4,0.68999272]
[1764875027164,2.0714,3128.5,3128.4,0.00479272]
[1764875027364,3.2078,3129.9,3128.9,2.3024]
[1764875027553,3.2078,3129.9,3129.0,0.7252]
[1764875028255,5.2792,3129.9,3129.6,0.7252]
[1764875028469,3.21036409,3129.9,3129.6,1.91888539]
[1764875029865,3.21036409,3129.9,3129.8,2.3024]
[1764875030567,0.00479272,3130.1,3130.0,2.3024]
[1764875031464,1.04049272,3130.1,3129.8,0.1597]
[1764875031668,3.2078,3129.9,3129.6,0.72838539]
[1764875032867,1.0357,3129.7,3129.6,0.72838539]
[1764875033063,3.2078,3129.9,3129.6,0.72838539]
[1764875033367,3.2078,3129.9,3129.8,2.3024]
[1764875034763,3.2078,3129.9,3129.8,1.1905]
[1764875034964,3.2078,3129.9,3129.8,2.3024]
[1764875035161,1.0357,3129.7,3129.6,0.72838539]
[1764875035370,2.84699943,3129.7,3129.6,0.00318539]
[1764875036658,1.0357,3129.4,3128.7,3.36756]
[1764875036863,1.0357,3129.4,3128.7,3.2078]
[1764875037062,1.0326,3128.8,3128.3,3.2078]
[1764875037459,3.2078,3129.0,3128.3,3.2078]
[1764875037666,3.2078,3129.4,3128.4,0.73243007]
[1764875037866,41.5764897,3129.3,3128.4,0.73243007]
[1764875038071,0.7764897,3129.2,3128.4,0.73243007]
[1764875038261,40.8,3129.3,3128.4,0.73243007]
[1764875038262,3.2078,3128.9,3128.4,0.73243007]
[1764875039580,0.77706258,3128.8,3128.4,0.73243007]
[1764875039870,3.2078,3128.9,3128.4,0.73243007]
[1764875040071,0.77711467,3128.8,3128.4,0.73243007]
[1764875040276,3.2078,3128.9,3128.4,0.73243007]
[1764875040474,0.77712491,3128.8,3128.7,1.1905]
[1764875040774,44.0078,3129.3,3128.8,2.3024]
[1764875040976,0.77734796,3129.2,3128.8,2.3024]
[1764875041163,44.0078,3129.3,3128.8,1.1905]
[1764875041475,0.77760573,3129.2,3128.8,1.1905]
[1764875041673,3.2078,3129.3,3128.8,1.1905]
[1764875041870,0.77761048,3129.2,3128.8,1.1905]
[1764875042071,0.77761048,3129.1,3128.8,1.1905]
[1764875042271,40.8,3129.2,3128.8,1.1905]
[1764875043173,0.77838558,3129.1,3128.8,1.1905]
[1764875043377,2.0652,3128.7,3128.4,0.73243007]
[1764875043975,3.2078,3128.9,3128.8,2.2835]
[1764875044278,4.8222,3128.9,3128.4,0.89220007]
[1764875044970,4.015,3128.9,3128.8,1.134]
[1764875045272,3.2078,3128.9,3128.8,2.2835]
[1764875045668,4.8222,3128.9,3128.6,0.15976]
[1764875045879,4.015,3128.9,3128.6,0.15976]
[1764875046676,0.8072,3128.7,3128.4,0.73243007]
[1764875046980,0.8072,3127.2,3127.1,0.00902693]
[1764875047176,1.6144,3127.2,3127.1,0.00902693]
[1764875047774,3.2078,3127.5,3127.1,0.00902693]
[1764875048072,0.8072,3127.4,3127.2,0.6256]
[1764875048470,0.8072,3127.3,3127.2,0.6256]
[1764875048976,0.8072,3127.2,3127.1,0.01163336]
[1764875049174,44.01133926,3127.5,3127.1,0.01163336]
[1764875049175,44.01133926,3127.5,3127.1,1.14563336]
[1764875049476,0.8072,3127.2,3127.1,0.01163336]
[1764875050278,44.01133926,3127.5,3127.2,0.6256]
[1764875050580,0.8072,3127.3,3127.2,0.6256]
[1764875050779,0.8072,3127.2,3127.1,0.01163336]
[1764875050980,44.01133926,3127.5,3127.1,0.01163336]
[1764875051382,1.6144,3127.2,3127.1,0.01163336]
[1764875051576,44.01133926,3127.5,3127.1,1.14563336]
[1764875051781,0.8072,3127.3,3127.2,0.6256]
[1764875052086,44.01133926,3127.5,3127.2,1.7596]
[1764875052377,3.21133926,3127.5,3127.4,2.2835]
[1764875052882,4.01853926,3127.5,3127.2,0.78544]
[1764875053184,3.21133926,3127.5,3127.4,2.2835]
[1764875053377,3.21133926,3127.5,3127.4,1.134]
[1764875053572,4.01853926,3127.5,3127.2,0.78544]
[1764875053882,0.8072,3127.3,3127.2,0.78544]
[1764875054679,3.21133926,3127.5,3127.4,1.29383]
[1764875054875,3.21133926,3127.5,3127.4,2.44333]
[1764875055780,4.01853926,3127.5,3127.4,0.15983]
[1764875056281,4.82573926,3127.5,3127.4,0.15983]
[1764875056688,1.6144,3127.3,3127.2,0.6256]
[1764875058193,0.8072,3127.2,3127.1,0.01163336]
[1764875059987,1.6144,3127.2,3127.1,0.01163336]
[1764875060281,9.89646554,3127.2,3125.8,0.00806751]
[1764875060487,6.39533926,3127.5,3126.5,0.6256]
[1764875060488,3.2078,3126.7,3126.5,0.6256]
[1764875060782,11.98833926,3127.5,3126.6,3.2078]
[1764875060984,3.2078,3126.7,3126.0,0.6256]
[1764875061182,3.2078,3126.6,3126.0,0.63436849]
[1764875061382,3.2078,3126.6,3126.0,0.00876849]
[1764875061383,2.72794838,3126.4,3126.0,0.00876849]
[1764875061582,40.8,3126.5,3126.0,3.84216849]
[1764875064087,3.2078,3127.0,3126.0,3.84216849]
[1764875064491,40.8,3126.9,3126.0,3.84216849]
[1764875066082,40.8,3126.9,3126.6,0.6256]
[1764875066783,40.8,3126.9,3126.5,3.2078]
[1764875067087,40.8,3126.9,3126.0,0.63436849]
[1764875067088,3.2078,3126.6,3126.0,0.63436849]
[1764875067684,40.8,3126.5,3126.0,0.63436849]
[1764875070393,3.2078,3127.1,3126.4,1.134]
[1764875070785,40.8,3127.0,3126.4,1.134]
[1764875071293,40.8,3127.0,3126.6,0.6256]
[1764875071491,3.21133926,3127.5,3127.2,0.6256]
[1764875071991,0.00353926,3127.5,3127.4,2.2835]
[1764875072180,3.2078,3127.9,3127.8,0.6256]
[1764875073090,3.21157761,3127.9,3127.8,0.6256]
[1764875075993,3.21157761,3127.9,3127.3,3.2078]
[1764875075994,9.21157761,3127.9,3127.2,0.6256]
[1764875076185,3.2078,3127.4,3126.9,3.2078]
[1764875076383,3.2078,3127.8,3127.3,3.2078]
[1764875076787,3.2078,3127.8,3127.7,1.0856]
[1764875076991,3.2078,3127.8,3127.3,3.2078]
[1764875078293,0.00377761,3127.9,3127.7,2.2098]
[1764875078496,0.00377761,3127.9,3127.8,3.086]
[1764875079493,1.1053,3127.2,3127.1,2.28237191]
[1764875079696,1.1053,3127.2,3127.1,4.2934]
[1764875080393,2.1603,3127.2,3127.1,3.2078]
[1764875080800,1.1053,3127.2,3127.1,3.2078]
[1764875081001,40.80377761,3127.9,3127.1,3.2078]
[1764875081002,40.80377761,3127.9,3127.2,0.8762]
[1764875081300,2.1603,3127.6,3127.3,3.2078]
[1764875081689,1.1053,3127.4,3127.3,3.2078]
[1764875082094,1.1053,3127.4,3127.2,0.8762]
[1764875082494,2.1603,3127.3,3126.6,0.6256]
[1764875083999,1.6313,3126.7,3126.6,0.6256]
[1764875084301,1.6313,3126.6,3126.5,3.2078]
[1764875086003,3.2078,3127.4,3126.5,4.8193]
[1764875086500,2.45454868,3127.3,3126.5,4.8193]
[1764875087199,2.45454868,3127.3,3126.5,5.7223]
[1764875088198,3.2078,3127.4,3126.5,5.7223]
[1764875090198,3.2078,3127.4,3126.5,5.88217]
[1764875091903,3.2078,3127.4,3126.6,0.15987]
[1764875092799,4.084,3127.8,3127.0,0.903]
[1764875093004,3.2078,3127.8,3127.0,0.903]
[1764875094702,1.6313,3127.1,3127.0,0.903]
[1764875094898,1.6313,3127.1,3127.0,2.5145]
[1764875095298,3.2078,3127.8,3127.0,4.0509]
[1764875095693,3.2078,3127.8,3127.5,0.903]
[1764875096406,3.2078,3127.8,3127.7,1.6115]
[1764875096710,3.2078,3127.8,3127.7,3.1479]
[1764875097404,4.8391,3127.8,3127.7,1.6115]
[1764875097805,4.8391,3127.8,3127.7,3.1479]
[1764875098000,3.2078,3127.8,3127.7,3.1479]
[1764875098508,4.8391,3127.8,3127.7,1.6115]
[1764875098706,3.2078,3127.8,3127.7,3.1479]
[1764875098904,3.2078,3127.8,3127.5,0.903]
[1764875098905,4.8391,3127.8,3127.5,0.903]
[1764875099108,1.6313,3127.6,3127.5,2.5145]
[1764875101111,3.2078,3127.8,3127.5,4.0509]
[1764875101411,3.2078,3127.8,3127.7,3.1479]
[1764875101605,4.8391,3127.8,3127.7,3.1479]
[1764875101805,0.00377761,3127.9,3127.8,3.1479]
[1764875102010,3.2078,3129.0,3128.5,4.0509]
[1764875102211,3.2078,3129.0,3128.6,3.2078]
[1764875102409,40.8,3128.9,3128.8,1.6115]
[1764875103012,40.80407159,3128.9,3128.8,1.61496478]
[1764875103309,0.00407159,3128.9,3128.8,3.15136478]
[1764875103514,0.00479272,3129.2,3129.1,3.1479]
[1764875103810,3.0487,3128.9,3128.8,0.00346478]
[1764875104010,1.5054,3128.9,3128.8,1.60096478]
[1764875104214,1.51019272,3129.2,3129.1,1.5975]
[1764875104716,0.00750585,3129.2,3129.1,3.131]
[1764875105011,1.5054,3129.1,3129.0,2.47]
[1764875105413,3.0487,3129.1,3129.0,2.47]
[1764875105804,3.0487,3129.1,3129.0,0.8725]
[1764875106010,1.5054,3129.1,3129.0,2.47]
[1764875106207,3.0487,3128.9,3128.8,0.00346478]
[1764875106511,8.71104868,3128.9,3128.8,0.00346478]
[1764875107115,8.71104868,3128.9,3128.0,4.1108]
[1764875107116,3.0487,3128.1,3128.0,4.1108]
[1764875107303,3.0487,3128.1,3127.5,4.1108]
[1764875107503,44.0078,3128.0,3127.5,4.034]
[1764875107705,4.7132,3128.0,3127.9,1.5975]
[1764875107906,6.2565,3128.0,3127.5,0.903]
[1764875108209,6.2565,3128.0,3127.9,0.0031089]
[1764875109913,3.2078,3128.0,3127.9,3.1341089]
[1764875110104,4.7132,3128.5,3128.0,0.8725]
[1764875110410,1.5054,3128.1,3128.0,0.8725]
[1764875110617,1.5054,3128.1,3128.0,2.47]
[1764875110816,3.2078,3128.5,3128.0,4.0035]
[1764875111012,3.2078,3128.5,3128.4,1.5975]
[1764875111217,3.2078,3128.9,3128.5,0.8725]
[1764875112719,40.8,3128.8,3128.7,1.5975]
[1764875113020,3.2078,3128.9,3128.8,3.131]
[1764875113315,6.2565,3128.9,3128.5,4.0803]
[1764875113516,1.5054,3128.6,3128.5,5.6778]
[1764875113722,44.0078,3128.9,3128.5,7.2113]
[1764875114317,3.2078,3128.9,3128.8,3.131]
[1764875114520,1.51290585,3129.2,3129.1,1.5975]
[1764875115022,0.00750585,3129.2,3129.1,3.131]
[1764875115223,3.2078,3129.7,3129.2,3.131]
[1764875115419,3.2078,3129.7,3129.1,3.36754]
[1764875115420,4.7132,3129.7,3129.6,1.5975]
[1764875115618,3.2078,3130.1,3129.6,3.131]
[1764875116128,3.2078,3130.1,3130.0,2.47]
[1764875116430,3.21648529,3130.1,3130.0,4.0035]
[1764875116616,4.72188529,3130.1,3130.0,2.47]
[1764875117217,4.72188529,3130.1,3129.5,4.24481272]
[1764875117218,6.26518529,3130.1,3129.5,4.24481272]
[1764875117625,6.26518529,3130.1,3129.5,4.08509272]
[1764875118132,4.72188529,3130.1,3130.0,2.47]
[1764875118322,6.26518529,3130.1,3129.5,4.08509272]
[1764875119121,3.21648529,3130.1,3130.0,4.0035]
[1764875119535,4.72188529,3130.1,3130.0,2.47]
[1764875119928,6.26518529,3130.1,3129.5,4.08509272]
[1764875121931,3.0487,3129.6,3129.5,3.21259272]
[1764875122130,5.50324868,3129.6,3129.5,0.00479272]
[1764875122333,8.71104868,3129.6,3129.5,0.00479272]
[1764875122733,49.51104868,3129.6,3129.5,0.00479272]
[1764875122928,3.0487,3129.1,3129.0,3.2078]
[1764875123634,46.46234868,3129.6,3129.0,7.2113]
[1764875123830,44.0078,3129.6,3129.0,7.2113]
[1764875124031,44.0078,3129.6,3129.0,7.21609272]
[1764875124232,1.5054,3129.1,3129.0,2.47479272]
[1764875124532,44.0078,3129.6,3129.0,4.00829272]
[1764875124736,3.2078,3130.0,3129.5,4.0035]
[1764875124927,3.2078,3130.0,3129.9,3.131]
[1764875126041,4.7132,3130.0,3129.5,0.8725]
[1764875128034,4.7132,3130.0,3129.9,1.5975]
[1764875128435,3.2078,3130.0,3129.9,3.131]
[1764875128638,0.00868529,3130.1,3130.0,4.0035]
[1764875128938,0.00868529,3130.1,3130.0,0.8725]
[1764875129238,3.05738529,3130.1,3130.0,0.8725]
[1764875130232,6.26518529,3130.1,3129.6,3.2078]
[1764875130438,4.75978529,3130.1,3129.6,3.2078]
[1764875131033,4.72188529,3130.1,3130.0,1.5975]
[1764875131429,3.21648529,3130.1,3130.0,4.0035]
[1764875131940,4.72188529,3130.1,3130.0,4.0035]
[1764875133738,3.21648529,3130.1,3130.0,4.0035]
[1764875133947,3.2078,3130.5,3130.4,2.9499]
[1764875134639,3.2078,3131.2,3130.8,2.9499]
[1764875134849,40.8,3131.4,3130.8,2.9499]
[1764875135138,40.80805046,3131.4,3130.8,2.95834925]
[1764875136641,3.2078,3131.2,3130.8,2.95834925]
[1764875136843,4.6649,3131.2,3131.1,1.4745]
[1764875137445,2.8845,3130.9,3130.8,0.00844925]
[1764875138546,2.8845,3130.9,3130.8,1.48294925]
[1764875138740,3.2078,3131.2,3130.8,2.95834925]
[1764875139848,2.8845,3130.9,3130.8,0.00844925]
[1764875141150,2.8845,3130.9,3129.6,0.15971]
[1764875141151,2.8845,3129.6,3129.0,0.8297]
[1764875141346,2.45454868,3129.5,3129.0,0.8297]
[1764875141544,1.4571,3129.1,3129.0,0.8297]
[1764875141743,2.8845,3129.1,3128.7,3.2078]
[1764875141951,5.34164682,3129.1,3128.7,3.21105488]
[1764875142147,2.8845,3128.8,3128.7,3.21105488]
[1764875142649,6.0923,3128.8,3128.7,0.00325488]
[1764875143254,3.2078,3128.8,3128.7,1.31865488]
[1764875143562,0.00259814,3129.1,3128.7,1.31865488]
[1764875144554,0.00259814,3129.1,3129.0,3.3693]
[1764875146853,3.2078,3129.5,3129.4,2.5701]
[1764875147059,5.7823,3129.5,3129.0,0.7992]
[1764875147654,5.78469092,3129.5,3129.0,0.7992]
[1764875148365,2.5745,3129.1,3129.0,0.7992]
[1764875148753,1.2778,3129.1,3129.0,0.7992]
[1764875148949,1.2778,3129.1,3129.0,2.1146]
[1764875149351,2.5745,3129.1,3128.7,3.21105488]
[1764875149559,3.2078,3129.0,3128.9,1.3154]
[1764875151153,3.2078,3129.4,3129.0,0.7992]
[1764875151364,3.2078,3129.4,3129.3,2.5701]
[1764875153963,5.7823,3129.4,3129.0,0.7992]
[1764875154164,4.4856,3129.4,3129.3,1.3154]
[1764875154461,3.2078,3129.4,3129.3,2.5701]
[1764875155663,4.4856,3129.4,3129.3,1.3154]
[1764875157461,5.7823,3129.4,3129.3,1.3154]
[1764875157763,5.7823,3129.4,3129.0,0.7992]
[1764875158959,5.7823,3129.4,3129.3,1.3154]
[1764875159367,2.5745,3129.4,3129.3,1.3154]
[1764875161259,3.21019092,3129.5,3129.4,2.5701]
[1764875161468,0.00479272,3129.6,3129.5,3.3693]
[1764875161667,3.2078,3130.4,3129.7,0.15971]
[1764875162564,3.2163188,3130.4,3129.7,0.15971]
[1764875163462,2.5745,3129.6,3129.5,2.1146]
[1764875163656,2.5745,3129.6,3129.5,0.7992]
[1764875164265,2.3411,3129.5,3129.4,4.5347]
[1764875164469,1.0633,3129.6,3129.5,3.3695]
[1764875164858,3.2078,3130.0,3129.9,2.642]
[1764875165267,0.0085188,3130.4,3130.3,2.642]
[1764875165460,1.0718188,3130.4,3130.3,2.642]
[1764875165965,0.0085188,3130.4,3130.3,2.642]
[1764875167261,0.0085188,3130.4,3130.3,5.8498]
[1764875167858,44.0078,3131.3,3131.2,2.642]
[1764875168270,44.0078,3131.3,3131.2,1.3269]
[1764875168461,3.2078,3131.3,3131.2,2.642]
[1764875168966,3.21067857,3131.3,3131.2,2.6452157]
[1764875169268,4.28247857,3131.3,3131.2,2.6452157]
[1764875169464,4.28247857,3131.3,3131.2,1.3301157]
[1764875169664,3.21067857,3131.3,3131.2,2.6452157]
[1764875170062,0.00287857,3131.3,3131.2,2.6452157]
[1764875170665,11.02951191,3132.4,3131.5,3.3695]
[1764875170666,3.2078,3132.3,3131.5,3.3695]
[1764875170877,3.2078,3132.3,3132.2,2.642]
[1764875171061,1.0718,3132.1,3132.0,2.0544]
[1764875171269,44.0078,3132.3,3132.0,3.3695]
[1764875171667,44.01061199,3132.3,3132.0,3.3695]
[1764875171867,4.28241199,3132.3,3132.2,1.3269]
[1764875172067,1.0718,3132.1,3132.0,0.7275]
[1764875172571,2.1436,3132.1,3132.0,0.7275]
[1764875172876,2.1436,3132.1,3131.1,3.2078]
[1764875172877,2.1436,3131.7,3131.1,3.2078]
[1764875173178,0.207,3132.0,3130.9,0.00479272]
[1764875173179,2.1436,3131.0,3130.9,0.00479272]
[1764875173562,2.1436,3131.0,3130.0,0.7275]
[1764875173563,42.9436,3131.0,3130.0,0.7275]
[1764875173765,3.2078,3130.5,3130.4,2.642]
[1764875174069,3.2078,3130.5,3130.4,2.64450746]
[1764875174878,3.2078,3130.5,3130.4,1.32940746]
[1764875175065,3.2078,3130.5,3130.4,2.64450746]
[1764875175269,0.00479272,3130.8,3130.4,2.64450746]
[1764875175581,0.00479272,3130.8,3130.7,2.642]
[1764875176271,0.00479272,3130.8,3130.7,5.8498]
[1764875176471,3.2078,3131.6,3131.5,2.642]
[1764875176680,3.2078,3132.0,3131.9,1.3269]
[1764875176864,3.2078,3132.0,3131.9,2.642]
[1764875177069,3.2078,3132.0,3131.9,1.3269]
[1764875177375,5.3514,3132.0,3131.6,0.00479272]
[1764875178672,3.2078,3132.0,3131.9,2.642]
[1764875179078,3.2078,3132.0,3131.9,1.3269]
[1764875181179,0.00595496,3132.3,3132.2,2.642]
[1764875181375,0.00595496,3132.3,3132.2,1.3269]
[1764875181577,2.1436,3131.7,3131.6,0.00479272]
[1764875181782,5.3514,3131.7,3131.6,0.00479272]
[1764875183079,52.1514,3131.7,3131.6,0.00479272]
[1764875183286,46.1514,3131.7,3131.6,0.00479272]
[1764875186078,52.1514,3131.7,3130.5,3.36747]
[1764875186279,1.067,3130.9,3130.5,3.36747]
[1764875186580,3.2078,3131.0,3130.8,2.0544]
[1764875187075,3.2078,3131.0,3130.9,1.3269]
[1764875189082,4.2748,3131.0,3130.9,1.3269]
[1764875189282,4.2748,3131.0,3130.8,0.7275]
[1764875189588,4.2748,3131.0,3130.9,1.3269]
[1764875189782,3.2078,3131.0,3130.9,2.642]
[1764875191287,2.134,3130.7,3130.6,0.00479272]
[1764875191489,2.134,3130.7,3130.4,0.00250746]
[1764875191490,2.134,3130.5,3130.4,0.00250746]
[1764875191881,2.134,3130.0,3129.9,3.2078]
[1764875192278,40.8,3130.4,3130.0,0.7275]
[1764875192485,3.2078,3130.2,3130.0,0.7275]
[1764875192685,2.134,3130.1,3130.0,0.7275]
[1764875192878,2.134,3130.0,3129.9,0.00479272]
[1764875193077,2.341,3130.0,3129.9,0.00861484]
[1764875193293,2.134,3130.0,3129.9,3.21641484]
[1764875194585,1.067,3130.0,3129.9,3.21641484]
[1764875194793,1.16637556,3130.1,3130.0,1.9734]
[1764875194991,1.16637556,3130.1,3130.0,0.8273]
[1764875195588,0.00377556,3130.1,3130.0,3.2064]
[1764875196182,1.1626,3130.0,3129.9,3.21641484]
[1764875196386,2.3678,3130.0,3129.9,3.21641484]
[1764875197489,1.1626,3130.0,3129.9,4.36251484]
[1764875197697,0.00377556,3130.1,3130.0,1.1461]
[1764875197891,0.00377556,3130.1,3130.0,3.2064]
[1764875198296,1.16637556,3130.1,3130.0,5.1812]
[1764875198493,2.37157556,3130.1,3130.0,3.2078]
[1764875201000,2.3678,3130.0,3129.9,0.00861484]
[1764875201198,2.3678,3130.0,3129.9,3.21641484]
[1764875202791,1.1626,3130.0,3129.9,4.36251484]
[1764875202994,2.4061,3130.0,3129.9,3.21641484]
[1764875204596,0.00377556,3130.1,3130.0,3.299]
[1764875204803,1.23897556,3130.1,3130.0,2.046]
[1764875206101,0.00377556,3130.1,3130.0,3.299]
[1764875207103,2.4787,3130.0,3129.9,3.21641484]
[1764875208296,1.2352,3130.0,3129.9,4.46781484]
[1764875208494,0.00377556,3130.1,3130.0,3.299]
[1764875208700,2.8398,3130.0,3129.9,0.00861484]
[1764875208902,2.4787,3129.1,3128.6,0.00822]
[1764875209105,3.2078,3129.0,3128.6,3.21602]
[1764875209404,3.2078,3129.0,3128.6,0.00822]
[1764875209706,5.6865,3129.0,3128.9,3.2078]
[1764875209899,5.68946879,3129.0,3128.9,3.21029906]
[1764875212609,3.21076879,3129.0,3128.9,5.71469906]
[1764875212805,5.68946879,3129.0,3128.9,3.21029906]
[1764875216308,6.37706879,3129.0,3128.9,0.00249906]
[1764875216512,2.4787,3128.7,3128.6,0.01301272]
[1764875216711,4.92858726,3128.7,3128.6,0.01301272]
[1764875216910,45.72858726,3128.7,3128.0,0.7946]
[1764875217109,2.4787,3128.4,3128.3,3.2078]
[1764875217307,2.4787,3127.6,3127.2,3.2078]
[1764875217508,4.443,3127.9,3127.8,1.2514]
[1764875217702,1.2352,3127.6,3127.5,0.7946]
[1764875217903,1.2352,3127.6,3127.5,2.046]
[1764875218611,3.21259272,3127.9,3127.5,3.299]
[1764875220107,4.44779272,3127.9,3127.8,1.2514]
[1764875220909,3.21259272,3127.9,3127.8,2.5044]
[1764875221305,3.21259272,3127.9,3127.5,0.7946]
[1764875221306,5.69129272,3127.9,3127.5,0.7946]
[1764875222001,3.21259272,3127.9,3127.8,2.5044]
[1764875222406,2.4787,3127.3,3127.2,0.00873574]
[1764875222609,2.4787,3126.5,3126.4,3.2078]
[1764875222808,2.4787,3126.5,3125.8,0.00806751]
[1764875223310,40.8,3126.6,3126.5,2.046]
[1764875223510,40.80336356,3126.6,3126.5,3.30152055]
[1764875223812,40.80336356,3126.6,3126.5,0.79712055]
[1764875224021,40.80336356,3126.6,3126.5,0.00252055]
[1764875224615,0.00336356,3126.6,3126.5,3.39822055]
[1764875227119,2.44986356,3126.6,3126.5,0.00252055]
[1764875227532,2.4465,3125.9,3125.8,0.00806751]
[1764875228515,2.4465,3125.9,3125.8,0.01204972]
[1764875228711,2.4465,3125.9,3124.4,1.838]
[1764875228712,2.4465,3125.1,3124.2,3.2078]
[1764875228918,3.2078,3124.9,3124.6,2.5867]
[1764875229414,3.2078,3124.9,3124.8,2.5867]
[1764875229623,3.2078,3124.9,3124.8,2.59028592]
[1764875229915,4.4411,3124.9,3124.8,0.00358592]
[1764875230223,1.2333,3124.1,3123.2,0.16004]
[1764875230417,3.2078,3124.0,3123.2,0.16004]
[1764875230624,3.2078,3124.0,3123.3,3.2078]
[1764875230820,3.2078,3124.0,3123.9,1.2464]
[1764875231023,4.4411,3124.0,3123.2,0.16004]
[1764875231222,2.4465,3123.0,3122.2,0.16009]
[1764875231420,6.00340416,3124.0,3122.0,3.2078]
[1764875231421,3.21120416,3124.0,3123.6,0.809]
[1764875231820,1.2333,3123.7,3123.1,3.2078]
[1764875232025,3.21120416,3124.0,3123.6,2.0554]
[1764875232223,3.21120416,3124.0,3123.6,2.05936333]
[1764875232528,3.21120416,3124.0,3123.6,0.81296333]
[1764875232724,44.01120416,3124.0,3123.9,2.5867]
[1764875233128,40.80340416,3124.0,3123.9,2.5867]
[1764875233326,0.00340416,3124.0,3123.9,2.5867]
[1764875234132,0.00340416,3124.0,3123.9,1.2464]
[1764875234328,0.00340416,3124.0,3123.6,0.81296333]
[1764875234523,0.00340416,3124.0,3123.9,2.5867]
[1764875235829,0.00340416,3124.0,3123.6,4.02076333]
[1764875235830,3.21120416,3124.0,3123.6,0.81296333]
[1764875236834,0.00340416,3124.0,3123.9,5.7945]
[1764875237138,3.2078,3124.9,3124.8,2.0554]
[1764875237337,3.2078,3124.9,3124.8,3.3957]
[1764875238038,3.21018944,3124.9,3124.8,3.3957]
[1764875239032,0.00238944,3124.9,3124.8,3.3957]
[1764875239232,0.00480054,3125.2,3125.1,2.5867]
[1764875239939,0.00480054,3125.2,3125.1,2.74664]
[1764875240443,0.00890312,3125.2,3125.1,2.74664]
[1764875240639,0.00890312,3125.2,3124.8,0.809]
[1764875240640,1.24220312,3125.2,3124.8,0.809]
[1764875241735,4.4411,3124.9,3124.5,0.00480054]
[1764875241941,3.2078,3124.9,3124.8,2.0554]
[1764875242136,3.2078,3124.9,3124.8,3.3957]
[1764875242847,3.2078,3124.9,3124.8,0.809]
[1764875243438,2.60647,3124.6,3124.5,5.4e-07]
[1764875243641,5.88098832,3124.6,3123.0,4.17685]
[1764875243942,3.2078,3123.8,3123.0,4.17685]
[1764875244747,3.2078,3123.8,3123.1,0.16005]
[1764875245245,0.82503442,3123.7,3123.1,0.16005]
[1764875245435,3.2078,3123.8,3123.1,0.16005]
[1764875245746,3.27117356,3123.7,3123.6,0.00396333]
[1764875245943,3.27117356,3123.7,3123.0,0.809]
[1764875246153,4.4411,3123.1,3122.4,0.809]
[1764875246340,3.21260054,3123.1,3122.4,0.809]